[Event "Titled Tuesday Blitz August 15 Early 2023"]
[White "Berezin, Viktor"]
[Black "Dehtiarov, Roman"]
[WhiteFideId "14107872"]
[BlackFideId "14186640"]
[WhiteElo "2512"]
[BlackElo "2664"]
[Result "0-1"]
[Round "7"]
[TimeControl "180+1"]
[Date "2023.08.15"]
[WhiteClock "0:00:27"]
[BlackClock "0:01:26"]
[Board "72"]

1. d4 {[%clk 0:02:54]}  Nf6 {[%clk 0:03:00]} 2. Nf3 {[%clk 0:02:53]}  b6 {[%clk 0:02:59]} 3. g3 {[%clk 0:02:52]}  e6 {[%clk 0:02:58]} 4. Bg2 {[%clk 0:02:53]}  Bb7 {[%clk 0:02:56]} 5. O-O {[%clk 0:02:53]}  c5 {[%clk 0:02:55]} 6. c4 {[%clk 0:02:52]}  Be7 {[%clk 0:02:55]} 7. Nc3 {[%clk 0:02:51]}  cxd4 {[%clk 0:02:55]} 8. Nxd4 {[%clk 0:02:51]}  Bxg2 {[%clk 0:02:55]} 9. Kxg2 {[%clk 0:02:52]}  O-O {[%clk 0:02:55]} 10. b3 {[%clk 0:02:52]}  Qc7 {[%clk 0:02:49]} 11. Bb2 {[%clk 0:02:51]}  a6 {[%clk 0:02:49]} 12. Rc1 {[%clk 0:02:51]}  d6 {[%clk 0:02:49]} 13. Qd3 {[%clk 0:02:48]}  Nbd7 {[%clk 0:02:49]} 14. Rfd1 {[%clk 0:02:47]}  Rfd8 {[%clk 0:02:48]} 15. h3 {[%clk 0:02:39]}  Qb7+ {[%clk 0:02:47]} 16. Kg1 {[%clk 0:02:39]}  Rac8 {[%clk 0:02:47]} 17. Qe3 {[%clk 0:02:39]}  Bf8 {[%clk 0:02:45]} 18. Nf3 {[%clk 0:02:26]}  Nc5 {[%clk 0:02:32]} 19. Rd4 {[%clk 0:02:18]}  e5 {[%clk 0:02:29]} 20. Rdd1 {[%clk 0:02:15]}  Ne6 {[%clk 0:02:25]} 21. Nd5 {[%clk 0:02:04]}  Nxd5 {[%clk 0:02:18]} 22. Rxd5 {[%clk 0:02:03]}  b5 {[%clk 0:02:12]} 23. Ba1 {[%clk 0:01:48]}  bxc4 {[%clk 0:02:11]} 24. bxc4 {[%clk 0:01:48]}  Rxc4 {[%clk 0:02:07]} 25. Rdd1 {[%clk 0:01:36]}  Rxc1 {[%clk 0:02:07]} 26. Rxc1 {[%clk 0:01:37]}  Rc8 {[%clk 0:02:07]} 27. Kh2 {[%clk 0:01:33]}  Rxc1 {[%clk 0:02:01]} 28. Qxc1 {[%clk 0:01:34]}  f6 {[%clk 0:01:59]} 29. Qc4 {[%clk 0:01:33]}  d5 {[%clk 0:01:59]} 30. Qg4 {[%clk 0:01:29]}  Qb6 {[%clk 0:01:55]} 31. Kg2 {[%clk 0:01:23]}  Nc5 {[%clk 0:01:50]} 32. Qc8 {[%clk 0:01:17]}  Ne4 {[%clk 0:01:42]} 33. e3 {[%clk 0:01:13]}  Qc5 {[%clk 0:01:28]} 34. Qxa6 {[%clk 0:01:10]}  Qc2 {[%clk 0:01:27]} 35. Qe6+ {[%clk 0:00:27]}  Kh8 {[%clk 0:01:26]} 0-1


[Site "https://www.chess.com"]

[Event "Titled Tuesday Blitz August 15 Early 2023"]
[White "Martinez Reyes, Pedro Ramon"]
[Black "Komov, Roman"]
[WhiteFideId "3901807"]
[BlackFideId "24175714"]
[WhiteElo "2507"]
[BlackElo "2621"]
[Result "1-0"]
[Round "7"]
[TimeControl "180+1"]
[Date "2023.08.15"]
[WhiteClock "0:00:42"]
[BlackClock "0:00:16"]
[Board "73"]

1. d4 {[%clk 0:02:53]}  Nf6 {[%clk 0:02:59]} 2. c4 {[%clk 0:02:53]}  e6 {[%clk 0:03:00]} 3. Nf3 {[%clk 0:02:51]}  d5 {[%clk 0:03:00]} 4. Nc3 {[%clk 0:02:46]}  Bb4 {[%clk 0:03:00]} 5. cxd5 {[%clk 0:02:45]}  exd5 {[%clk 0:03:01]} 6. Qa4+ {[%clk 0:02:44]}  Nc6 {[%clk 0:03:01]} 7. Bg5 {[%clk 0:02:43]}  h6 {[%clk 0:03:01]} 8. Bxf6 {[%clk 0:02:43]}  Qxf6 {[%clk 0:03:02]} 9. e3 {[%clk 0:02:39]}  O-O {[%clk 0:03:02]} 10. a3 {[%clk 0:02:36]}  Bxc3+ {[%clk 0:02:50]} 11. bxc3 {[%clk 0:02:37]}  Qg6 {[%clk 0:02:49]} 12. Nh4 {[%clk 0:02:22]}  Qg4 {[%clk 0:02:44]} 13. Nf3 {[%clk 0:02:21]}  Bd7 {[%clk 0:02:35]} 14. Qc2 {[%clk 0:02:18]}  Bf5 {[%clk 0:02:30]} 15. Qd1 {[%clk 0:01:55]}  Rfe8 {[%clk 0:02:05]} 16. h3 {[%clk 0:01:54]}  Qg6 {[%clk 0:02:00]} 17. Nh4 {[%clk 0:01:53]}  Rxe3+ {[%clk 0:01:55]} 18. fxe3 {[%clk 0:01:51]}  Qg3+ {[%clk 0:01:55]} 19. Kd2 {[%clk 0:01:51]}  Qxh4 {[%clk 0:01:54]} 20. Qf3 {[%clk 0:01:51]}  Be4 {[%clk 0:01:49]} 21. Qf4 {[%clk 0:01:51]}  Qe7 {[%clk 0:01:49]} 22. Bd3 {[%clk 0:01:46]}  Na5 {[%clk 0:01:47]} 23. Bxe4 {[%clk 0:01:38]}  Nb3+ {[%clk 0:01:42]} 24. Ke2 {[%clk 0:01:38]}  Nxa1 {[%clk 0:01:34]} 25. Bxd5 {[%clk 0:01:37]}  Qxa3 {[%clk 0:01:29]} 26. Qxf7+ {[%clk 0:01:33]}  Kh8 {[%clk 0:01:29]} 27. Rf1 {[%clk 0:01:31]}  Qb2+ {[%clk 0:01:20]} 28. Kf3 {[%clk 0:01:28]}  Nc2 {[%clk 0:01:02]} 29. Be4 {[%clk 0:00:42]}  Qxc3 {[%clk 0:00:27]} 30. Qg6 {[%clk 0:00:42]}  Qxe3+ {[%clk 0:00:22]} 31. Kg4 {[%clk 0:00:42]}  Kg8 {[%clk 0:00:16]} 32. Qh7# {[%clk 0:00:42]} 1-0


[Site "https://www.chess.com"]

[Event "Titled Tuesday Blitz August 15 Early 2023"]
[White "Colas, Joshua"]
[Black "Marn, Jan"]
[WhiteFideId "2044447"]
[BlackFideId "14619245"]
[WhiteElo "2617"]
[BlackElo "2498"]
[Result "1-0"]
[Round "7"]
[TimeControl "180+1"]
[Date "2023.08.15"]
[WhiteClock "0:00:17"]
[BlackClock "0:00:04"]
[Board "74"]

1. Nf3 {[%clk 0:01:29]}  Nf6 {[%clk 0:02:57]} 2. c4 {[%clk 0:01:29]}  b6 {[%clk 0:02:54]} 3. g3 {[%clk 0:01:29]}  Bb7 {[%clk 0:02:55]} 4. Bg2 {[%clk 0:01:25]}  g6 {[%clk 0:02:55]} 5. b3 {[%clk 0:01:25]}  Bg7 {[%clk 0:02:55]} 6. Bb2 {[%clk 0:01:25]}  O-O {[%clk 0:02:56]} 7. O-O {[%clk 0:01:25]}  d6 {[%clk 0:02:53]} 8. d4 {[%clk 0:01:25]}  Nbd7 {[%clk 0:02:51]} 9. d5 {[%clk 0:01:25]}  a5 {[%clk 0:02:50]} 10. Nc3 {[%clk 0:01:24]}  Nc5 {[%clk 0:02:48]} 11. Qc2 {[%clk 0:01:23]}  e5 {[%clk 0:02:42]} 12. dxe6 {[%clk 0:01:21]}  fxe6 {[%clk 0:02:42]} 13. a3 {[%clk 0:01:11]}  Nfe4 {[%clk 0:02:16]} 14. b4 {[%clk 0:00:47]}  Nxc3 {[%clk 0:01:25]} 15. bxc5 {[%clk 0:00:38]}  Ne4 {[%clk 0:00:40]} 16. Bxg7 {[%clk 0:00:37]}  Kxg7 {[%clk 0:00:41]} 17. c6 {[%clk 0:00:37]}  Bxc6 {[%clk 0:00:32]} 18. Nd4 {[%clk 0:00:37]}  Qf6 {[%clk 0:00:25]} 19. Bxe4 {[%clk 0:00:28]}  Qxd4 {[%clk 0:00:25]} 20. Bxc6 {[%clk 0:00:28]}  Rxf2 {[%clk 0:00:25]} 21. Rxf2 {[%clk 0:00:25]}  Qxa1+ {[%clk 0:00:25]} 22. Kg2 {[%clk 0:00:23]}  Rf8 {[%clk 0:00:25]} 23. Rxf8 {[%clk 0:00:21]}  Kxf8 {[%clk 0:00:26]} 24. Qe4 {[%clk 0:00:20]}  Ke7 {[%clk 0:00:20]} 25. Qf3 {[%clk 0:00:17]}  Qd4 {[%clk 0:00:15]} 26. Qe4 {[%clk 0:00:17]}  Qf6 {[%clk 0:00:11]} 27. a4 {[%clk 0:00:15]}  h6 {[%clk 0:00:08]} 28. Bb5 {[%clk 0:00:16]}  g5 {[%clk 0:00:06]} 29. Qc6 {[%clk 0:00:16]}  Qe5 {[%clk 0:00:05]} 30. Qxc7+ {[%clk 0:00:16]}  Kf6 {[%clk 0:00:06]} 31. Qxb6 {[%clk 0:00:13]}  Qxe2+ {[%clk 0:00:05]} 32. Qf2+ {[%clk 0:00:12]}  Qxf2+ {[%clk 0:00:06]} 33. Kxf2 {[%clk 0:00:13]}  Ke5 {[%clk 0:00:06]} 34. Ke3 {[%clk 0:00:14]}  Kf5 {[%clk 0:00:04]} 35. Bd7 {[%clk 0:00:14]}  Ke5 {[%clk 0:00:05]} 36. Bc8 {[%clk 0:00:15]}  Kf5 {[%clk 0:00:05]} 37. Kd4 {[%clk 0:00:15]}  Kf6 {[%clk 0:00:05]} 38. c5 {[%clk 0:00:16]}  e5+ {[%clk 0:00:05]} 39. Kd5 {[%clk 0:00:16]}  dxc5 {[%clk 0:00:04]} 40. Kxc5 {[%clk 0:00:17]} 1-0


[Site "https://www.chess.com"]

[Event "Titled Tuesday Blitz August 15 Early 2023"]
[White "Bazilius, Augustinas"]
[Black "Manukyan, Sargis A."]
[WhiteFideId "12832251"]
[BlackFideId "13303970"]
[WhiteElo "2457"]
[BlackElo "2595"]
[Result "1-0"]
[Round "7"]
[TimeControl "180+1"]
[Date "2023.08.15"]
[WhiteClock "0:00:06"]
[BlackClock "0:00:42"]
[Board "77"]

1. d4 {[%clk 0:02:54]}  d5 {[%clk 0:02:59]} 2. c4 {[%clk 0:02:55]}  e6 {[%clk 0:03:00]} 3. Nf3 {[%clk 0:02:56]}  Nf6 {[%clk 0:03:00]} 4. g3 {[%clk 0:02:56]}  Be7 {[%clk 0:03:01]} 5. Bg2 {[%clk 0:02:57]}  O-O {[%clk 0:03:02]} 6. O-O {[%clk 0:02:57]}  dxc4 {[%clk 0:03:02]} 7. Ne5 {[%clk 0:02:56]}  Nc6 {[%clk 0:03:02]} 8. Bxc6 {[%clk 0:02:57]}  bxc6 {[%clk 0:03:03]} 9. Nxc6 {[%clk 0:02:57]}  Qe8 {[%clk 0:03:04]} 10. Nxe7+ {[%clk 0:02:55]}  Qxe7 {[%clk 0:03:05]} 11. Qa4 {[%clk 0:02:55]}  c5 {[%clk 0:03:05]} 12. Qxc4 {[%clk 0:02:49]}  cxd4 {[%clk 0:03:04]} 13. Qxd4 {[%clk 0:02:50]}  e5 {[%clk 0:03:05]} 14. Qh4 {[%clk 0:02:27]}  h6 {[%clk 0:03:05]} 15. b3 {[%clk 0:02:24]}  Rb8 {[%clk 0:03:02]} 16. Ba3 {[%clk 0:02:23]}  Qe6 {[%clk 0:02:56]} 17. Bxf8 {[%clk 0:02:20]}  Kxf8 {[%clk 0:02:57]} 18. Qc4 {[%clk 0:02:02]}  Qe7 {[%clk 0:02:43]} 19. Rc1 {[%clk 0:01:53]}  Be6 {[%clk 0:02:42]} 20. Qc7 {[%clk 0:01:52]}  Qb4 {[%clk 0:02:17]} 21. Qc5+ {[%clk 0:01:47]}  Qxc5 {[%clk 0:02:14]} 22. Rxc5 {[%clk 0:01:48]}  Nd7 {[%clk 0:02:11]} 23. Rc7 {[%clk 0:01:45]}  a5 {[%clk 0:02:09]} 24. Nc3 {[%clk 0:01:40]}  Ra8 {[%clk 0:02:05]} 25. Na4 {[%clk 0:01:36]}  g5 {[%clk 0:01:56]} 26. Rd1 {[%clk 0:01:31]}  Nf6 {[%clk 0:01:52]} 27. Nc5 {[%clk 0:01:25]}  Bh3 {[%clk 0:01:50]} 28. Rc6 {[%clk 0:01:08]}  Kg7 {[%clk 0:01:49]} 29. Rdd6 {[%clk 0:00:56]}  Ne8 {[%clk 0:01:18]} 30. Rxh6 {[%clk 0:00:51]}  Bf5 {[%clk 0:01:18]} 31. e4 {[%clk 0:00:44]}  Bg6 {[%clk 0:01:18]} 32. Rhxg6+ {[%clk 0:00:35]}  fxg6 {[%clk 0:01:19]} 33. Ra6 {[%clk 0:00:24]}  Rc8 {[%clk 0:01:07]} 34. Rxa5 {[%clk 0:00:23]}  g4 {[%clk 0:01:04]} 35. Nd3 {[%clk 0:00:20]}  Nf6 {[%clk 0:00:59]} 36. Nxe5 {[%clk 0:00:17]}  Rc1+ {[%clk 0:00:57]} 37. Kg2 {[%clk 0:00:17]}  Re1 {[%clk 0:00:58]} 38. Ra4 {[%clk 0:00:10]}  Re2 {[%clk 0:00:57]} 39. Kf1 {[%clk 0:00:09]}  Rb2 {[%clk 0:00:57]} 40. Nd3 {[%clk 0:00:07]}  Rb1+ {[%clk 0:00:56]} 41. Kg2 {[%clk 0:00:07]}  Rd1 {[%clk 0:00:55]} 42. e5 {[%clk 0:00:05]}  Nd5 {[%clk 0:00:55]} 43. Nf4 {[%clk 0:00:04]}  Nc3 {[%clk 0:00:51]} 44. Ra7+ {[%clk 0:00:04]}  Kh6 {[%clk 0:00:51]} 45. e6 {[%clk 0:00:05]}  Rd2 {[%clk 0:00:43]} 46. e7 {[%clk 0:00:05]}  Nd1 {[%clk 0:00:44]} 47. e8=Q {[%clk 0:00:05]}  Ne3+ {[%clk 0:00:45]} 48. Qxe3 {[%clk 0:00:04]}  g5 {[%clk 0:00:42]} 49. Qxd2 {[%clk 0:00:04]}  gxf4 {[%clk 0:00:42]} 50. Qd6+ {[%clk 0:00:05]}  Kh5 {[%clk 0:00:42]} 51. Ra5# {[%clk 0:00:06]} 1-0


[Site "https://www.chess.com"]

[Event "Titled Tuesday Blitz August 15 Early 2023"]
[White "Lach, Aleksandra"]
[Black "Altman, Joshua"]
[WhiteFideId "1134299"]
[BlackFideId "426210"]
[WhiteElo "2403"]
[BlackElo "2584"]
[Result "1-0"]
[Round "7"]
[TimeControl "180+1"]
[Date "2023.08.15"]
[WhiteClock "0:00:42"]
[BlackClock "0:00:08"]
[Board "79"]

1. Nf3 {[%clk 0:03:00]}  Nf6 {[%clk 0:02:57]} 2. g3 {[%clk 0:02:56]}  b6 {[%clk 0:02:56]} 3. Bg2 {[%clk 0:02:56]}  Bb7 {[%clk 0:02:55]} 4. d3 {[%clk 0:02:56]}  d5 {[%clk 0:02:54]} 5. O-O {[%clk 0:02:55]}  e6 {[%clk 0:02:52]} 6. c3 {[%clk 0:02:52]}  Be7 {[%clk 0:02:51]} 7. Ne5 {[%clk 0:02:41]}  O-O {[%clk 0:02:49]} 8. g4 {[%clk 0:02:30]}  Nbd7 {[%clk 0:02:46]} 9. Nxd7 {[%clk 0:02:29]}  Nxd7 {[%clk 0:02:33]} 10. f4 {[%clk 0:02:25]}  c5 {[%clk 0:02:27]} 11. Nd2 {[%clk 0:02:22]}  Qc7 {[%clk 0:02:25]} 12. Nf3 {[%clk 0:02:22]}  Rad8 {[%clk 0:02:22]} 13. Qe1 {[%clk 0:02:21]}  Nf6 {[%clk 0:02:07]} 14. g5 {[%clk 0:02:20]}  Nh5 {[%clk 0:01:57]} 15. Qh4 {[%clk 0:02:05]}  g6 {[%clk 0:01:56]} 16. Ne5 {[%clk 0:02:05]}  d4 {[%clk 0:01:46]} 17. Bxb7 {[%clk 0:02:02]}  Qxb7 {[%clk 0:01:46]} 18. c4 {[%clk 0:01:47]}  Bd6 {[%clk 0:01:37]} 19. Ng4 {[%clk 0:01:46]}  Be7 {[%clk 0:01:22]} 20. Rf3 {[%clk 0:01:35]}  f5 {[%clk 0:01:10]} 21. gxf6 {[%clk 0:01:17]}  Bxf6 {[%clk 0:01:09]} 22. Nxf6+ {[%clk 0:01:13]}  Rxf6 {[%clk 0:01:06]} 23. Bd2 {[%clk 0:01:13]}  Rdf8 {[%clk 0:01:05]} 24. Raf1 {[%clk 0:01:13]}  a6 {[%clk 0:00:43]} 25. Qg4 {[%clk 0:01:13]}  Qf7 {[%clk 0:00:40]} 26. e4 {[%clk 0:01:08]}  dxe3 {[%clk 0:00:25]} 27. Bxe3 {[%clk 0:01:08]}  Ng7 {[%clk 0:00:22]} 28. Bd2 {[%clk 0:01:07]}  Nf5 {[%clk 0:00:22]} 29. Bc3 {[%clk 0:01:07]}  Nd4 {[%clk 0:00:22]} 30. Bxd4 {[%clk 0:01:04]}  cxd4 {[%clk 0:00:23]} 31. Kg2 {[%clk 0:01:02]}  Kh8 {[%clk 0:00:22]} 32. h4 {[%clk 0:01:01]}  h5 {[%clk 0:00:22]} 33. Qg5 {[%clk 0:01:00]}  Kh7 {[%clk 0:00:21]} 34. Qe5 {[%clk 0:00:47]}  Qd7 {[%clk 0:00:16]} 35. Re1 {[%clk 0:00:45]}  Re8 {[%clk 0:00:08]} 36. Qxf6 {[%clk 0:00:42]} 1-0


[Site "https://www.chess.com"]

[Event "Titled Tuesday Blitz August 15 Early 2023"]
[White "Smiechu"]
[Black "Trifan, Andrei Ioan"]
[BlackFideId "12967068"]
[WhiteElo "2403"]
[BlackElo "2568"]
[Result "1-0"]
[Round "7"]
[TimeControl "180+1"]
[Date "2023.08.15"]
[WhiteClock "0:01:35"]
[BlackClock "0:01:11"]
[Board "80"]

1. e4 {[%clk 0:02:55]}  e5 {[%clk 0:02:59]} 2. Nf3 {[%clk 0:02:55]}  Nc6 {[%clk 0:02:59]} 3. Bb5 {[%clk 0:02:55]}  a6 {[%clk 0:03:00]} 4. Ba4 {[%clk 0:02:55]}  Nf6 {[%clk 0:03:00]} 5. Qe2 {[%clk 0:02:55]}  b5 {[%clk 0:03:00]} 6. Bb3 {[%clk 0:02:55]}  Bc5 {[%clk 0:02:58]} 7. a4 {[%clk 0:02:55]}  b4 {[%clk 0:02:54]} 8. Bxf7+ {[%clk 0:02:55]}  Kxf7 {[%clk 0:02:51]} 9. Qc4+ {[%clk 0:02:55]}  Ke8 {[%clk 0:02:40]} 10. Qxc5 {[%clk 0:02:56]}  Nxe4 {[%clk 0:02:40]} 11. Qe3 {[%clk 0:02:56]}  Nf6 {[%clk 0:02:31]} 12. Nxe5 {[%clk 0:02:51]}  Nxe5 {[%clk 0:02:32]} 13. Qxe5+ {[%clk 0:02:52]}  Kf7 {[%clk 0:02:33]} 14. O-O {[%clk 0:02:51]}  Re8 {[%clk 0:02:32]} 15. Qg3 {[%clk 0:02:50]}  Bb7 {[%clk 0:02:27]} 16. d4 {[%clk 0:02:50]}  Re4 {[%clk 0:02:25]} 17. f3 {[%clk 0:02:43]}  Rxd4 {[%clk 0:02:22]} 18. Be3 {[%clk 0:02:43]}  Rc4 {[%clk 0:02:18]} 19. Nd2 {[%clk 0:02:42]}  Rxc2 {[%clk 0:02:16]} 20. Ne4 {[%clk 0:02:41]}  Qe7 {[%clk 0:01:49]} 21. Bg5 {[%clk 0:02:30]}  Bxe4 {[%clk 0:01:44]} 22. fxe4 {[%clk 0:02:30]}  Qxe4 {[%clk 0:01:45]} 23. Bxf6 {[%clk 0:02:23]}  gxf6 {[%clk 0:01:46]} 24. Rae1 {[%clk 0:02:23]}  Qd4+ {[%clk 0:01:38]} 25. Kh1 {[%clk 0:02:23]}  Rg8 {[%clk 0:01:30]} 26. Qh3 {[%clk 0:02:14]}  Qg4 {[%clk 0:01:20]} 27. Qxh7+ {[%clk 0:01:36]}  Rg7 {[%clk 0:01:11]} 28. Qxc2 {[%clk 0:01:35]} 1-0


[Site "https://www.chess.com"]

[Event "Titled Tuesday Blitz August 15 Early 2023"]
[White "Mikhaylova, Irina"]
[Black "MaryanKyrychenko"]
[WhiteFideId "4109040"]
[WhiteElo "2318"]
[BlackElo "2562"]
[Result "1/2-1/2"]
[Round "7"]
[TimeControl "180+1"]
[Date "2023.08.15"]
[WhiteClock "0:00:27"]
[BlackClock "0:00:49"]
[Board "81"]

1. d4 {[%clk 0:03:00]}  Nf6 {[%clk 0:02:58]} 2. Nf3 {[%clk 0:03:01]}  d5 {[%clk 0:02:56]} 3. c4 {[%clk 0:03:01]}  Bf5 {[%clk 0:02:56]} 4. Nc3 {[%clk 0:02:59]}  e6 {[%clk 0:02:56]} 5. cxd5 {[%clk 0:02:59]}  exd5 {[%clk 0:02:57]} 6. Bg5 {[%clk 0:02:59]}  Be7 {[%clk 0:02:56]} 7. e3 {[%clk 0:02:58]}  O-O {[%clk 0:02:56]} 8. Bd3 {[%clk 0:02:59]}  Bg6 {[%clk 0:02:53]} 9. Ne5 {[%clk 0:02:57]}  c5 {[%clk 0:02:51]} 10. Nxg6 {[%clk 0:02:53]}  hxg6 {[%clk 0:02:50]} 11. dxc5 {[%clk 0:02:47]}  Nbd7 {[%clk 0:02:43]} 12. O-O {[%clk 0:02:38]}  Nxc5 {[%clk 0:02:42]} 13. Nb5 {[%clk 0:02:36]}  a6 {[%clk 0:02:39]} 14. Nd4 {[%clk 0:02:36]}  Nce4 {[%clk 0:02:36]} 15. Bh4 {[%clk 0:02:18]}  Qb6 {[%clk 0:02:32]} 16. Qb3 {[%clk 0:02:10]}  Qa7 {[%clk 0:02:23]} 17. Rfd1 {[%clk 0:02:03]}  Rfe8 {[%clk 0:02:07]} 18. Rac1 {[%clk 0:01:56]}  Bc5 {[%clk 0:02:06]} 19. Bxe4 {[%clk 0:01:35]}  dxe4 {[%clk 0:01:51]} 20. Bxf6 {[%clk 0:01:34]}  gxf6 {[%clk 0:01:50]} 21. Qc2 {[%clk 0:01:19]}  b6 {[%clk 0:01:46]} 22. a3 {[%clk 0:01:13]}  Qb7 {[%clk 0:01:35]} 23. b4 {[%clk 0:01:09]}  Bf8 {[%clk 0:01:28]} 24. Qc6 {[%clk 0:01:09]}  Qxc6 {[%clk 0:01:26]} 25. Rxc6 {[%clk 0:01:02]}  a5 {[%clk 0:01:23]} 26. Rxb6 {[%clk 0:00:58]}  axb4 {[%clk 0:01:16]} 27. axb4 {[%clk 0:00:58]}  f5 {[%clk 0:01:17]} 28. b5 {[%clk 0:00:57]}  Red8 {[%clk 0:01:14]} 29. Rc6 {[%clk 0:00:56]}  Bg7 {[%clk 0:01:12]} 30. h3 {[%clk 0:00:48]}  Ra4 {[%clk 0:01:11]} 31. Rb1 {[%clk 0:00:41]}  Bxd4 {[%clk 0:01:09]} 32. exd4 {[%clk 0:00:41]}  Raxd4 {[%clk 0:01:10]} 33. b6 {[%clk 0:00:41]}  Rd1+ {[%clk 0:01:10]} 34. Rxd1 {[%clk 0:00:41]}  Rxd1+ {[%clk 0:01:11]} 35. Kh2 {[%clk 0:00:41]}  Rb1 {[%clk 0:01:11]} 36. Kg3 {[%clk 0:00:41]}  Kg7 {[%clk 0:01:11]} 37. h4 {[%clk 0:00:41]}  Rb2 {[%clk 0:01:09]} 38. Rd6 {[%clk 0:00:35]}  Kh6 {[%clk 0:01:06]} 39. Rf6 {[%clk 0:00:29]}  Kg7 {[%clk 0:01:03]} 40. Rd6 {[%clk 0:00:27]}  Kh6 {[%clk 0:00:59]} 41. Rf6 {[%clk 0:00:27]}  Kg7 {[%clk 0:00:49]} 42. Rd6 {[%clk 0:00:27]} 1/2-1/2


[Site "https://www.chess.com"]

[Event "Titled Tuesday Blitz August 15 Early 2023"]
[White "Ljukin, Sergei"]
[Black "Bryakin, Mikhail"]
[WhiteFideId "14102200"]
[BlackFideId "4165314"]
[WhiteElo "2457"]
[BlackElo "2707"]
[Result "0-1"]
[Round "7"]
[TimeControl "180+1"]
[Date "2023.08.15"]
[WhiteClock "0:00:07"]
[BlackClock "0:01:54"]
[Board "85"]

1. e4 {[%clk 0:02:54]}  Nc6 {[%clk 0:02:58]} 2. Nf3 {[%clk 0:02:53]}  d5 {[%clk 0:02:58]} 3. exd5 {[%clk 0:02:52]}  Qxd5 {[%clk 0:02:59]} 4. Nc3 {[%clk 0:02:52]}  Qe6+ {[%clk 0:03:00]} 5. Be2 {[%clk 0:02:51]}  g6 {[%clk 0:03:00]} 6. d4 {[%clk 0:02:47]}  Qd6 {[%clk 0:02:59]} 7. Nb5 {[%clk 0:02:43]}  Qd8 {[%clk 0:02:58]} 8. Bf4 {[%clk 0:02:42]}  e5 {[%clk 0:02:57]} 9. Nxe5 {[%clk 0:02:27]}  Bd6 {[%clk 0:02:58]} 10. Bc4 {[%clk 0:02:10]}  Be6 {[%clk 0:02:54]} 11. Bxe6 {[%clk 0:02:10]}  fxe6 {[%clk 0:02:55]} 12. Nxd6+ {[%clk 0:01:46]}  cxd6 {[%clk 0:02:55]} 13. Nf3 {[%clk 0:01:45]}  Qd7 {[%clk 0:02:52]} 14. O-O {[%clk 0:01:42]}  O-O-O {[%clk 0:02:53]} 15. c3 {[%clk 0:01:35]}  h6 {[%clk 0:02:53]} 16. b4 {[%clk 0:01:33]}  g5 {[%clk 0:02:53]} 17. Be3 {[%clk 0:01:33]}  Nf6 {[%clk 0:02:54]} 18. a4 {[%clk 0:01:32]}  Nd5 {[%clk 0:02:51]} 19. Qd2 {[%clk 0:01:27]}  Rdf8 {[%clk 0:02:48]} 20. a5 {[%clk 0:01:25]}  Nce7 {[%clk 0:02:44]} 21. a6 {[%clk 0:01:15]}  b5 {[%clk 0:02:44]} 22. Qd3 {[%clk 0:01:07]}  Nb6 {[%clk 0:02:44]} 23. Nd2 {[%clk 0:01:03]}  Ned5 {[%clk 0:02:40]} 24. Ra5 {[%clk 0:01:01]}  Nc7 {[%clk 0:02:40]} 25. c4 {[%clk 0:01:00]}  Rf5 {[%clk 0:02:34]} 26. c5 {[%clk 0:00:59]}  Nbd5 {[%clk 0:02:34]} 27. Ne4 {[%clk 0:00:49]}  dxc5 {[%clk 0:02:27]} 28. bxc5 {[%clk 0:00:48]}  Nb4 {[%clk 0:02:04]} 29. Qb1 {[%clk 0:00:47]}  Nc6 {[%clk 0:02:04]} 30. Rxb5 {[%clk 0:00:39]}  Nxb5 {[%clk 0:02:01]} 31. Qxb5 {[%clk 0:00:39]}  Kd8 {[%clk 0:01:55]} 32. Nd6 {[%clk 0:00:35]}  Rd5 {[%clk 0:01:56]} 33. Rb1 {[%clk 0:00:19]}  Ke7 {[%clk 0:01:57]} 34. Qe2 {[%clk 0:00:14]}  Rb8 {[%clk 0:01:53]} 35. Rxb8 {[%clk 0:00:12]}  Nxb8 {[%clk 0:01:54]} 36. Qh5 {[%clk 0:00:12]}  Kd8 {[%clk 0:01:52]} 37. Qxh6 {[%clk 0:00:10]}  Kc7 {[%clk 0:01:53]} 38. Qxg5 {[%clk 0:00:10]}  Rxg5 {[%clk 0:01:53]} 39. Bxg5 {[%clk 0:00:11]}  Nxa6 {[%clk 0:01:53]} 40. Bf4 {[%clk 0:00:07]}  Kc6 {[%clk 0:01:54]} 0-1


[Site "https://www.chess.com"]